[Event "*** Titled Tuesday Blitz"]
[Site "Chess.com"]
[Date "2021.02.02"]
[Round "7"]
[White "Aslanov_Umid"]
[Black "Jungle_Jaguar"]
[Result "0-1"]
[WhiteElo "2341"]
[BlackElo "2617"]
[TimeControl "180+1"]
[EndTime "11:19:40 PST"]
[Termination "Jungle_Jaguar won by checkmate"]

1. e4 {[%clk 0:03:00.9]} 1... c5 {[%clk 0:02:57.6]} 2. Nf3 {[%clk 0:03:00.7]}
2... Nc6 {[%clk 0:02:57.7]} 3. d4 {[%clk 0:03:00.9]} 3... cxd4 {[%clk
0:02:58.6]} 4. Nxd4 {[%clk 0:03:01.7]} 4... Nf6 {[%clk 0:02:59.2]} 5. Nc3 {[%clk
0:03:02]} 5... e5 {[%clk 0:02:59.8]} 6. Ndb5 {[%clk 0:03:02.4]} 6... d6 {[%clk
0:03:00.5]} 7. Bg5 {[%clk 0:03:00.9]} 7... a6 {[%clk 0:03:00.6]} 8. Na3 {[%clk
0:03:01.5]} 8... b5 {[%clk 0:03:00.7]} 9. Nd5 {[%clk 0:03:02.1]} 9... Be7 {[%clk
0:03:00.5]} 10. Bxf6 {[%clk 0:03:02.3]} 10... Bxf6 {[%clk 0:03:00.7]} 11. c3
{[%clk 0:03:02.4]} 11... O-O {[%clk 0:02:56.4]} 12. Nc2 {[%clk 0:02:59.2]} 12...
Rb8 {[%clk 0:02:56.6]} 13. Be2 {[%clk 0:02:53.7]} 13... Bg5 {[%clk 0:02:47.9]}
14. h4 {[%clk 0:02:52.2]} 14... Bh6 {[%clk 0:02:35.2]} 15. Bg4 {[%clk
0:02:36.8]} 15... Be6 {[%clk 0:02:11.5]} 16. Nce3 {[%clk 0:02:28.6]} 16... Bxe3
{[%clk 0:02:06.2]} 17. Nxe3 {[%clk 0:02:29.5]} 17... Ne7 {[%clk 0:02:04.7]} 18.
Bxe6 {[%clk 0:02:21.5]} 18... fxe6 {[%clk 0:02:04.8]} 19. Qg4 {[%clk 0:02:21.3]}
19... Qd7 {[%clk 0:01:55.8]} 20. g3 {[%clk 0:02:04]} 20... b4 {[%clk 0:01:41.4]}
21. O-O {[%clk 0:02:01.5]} 21... bxc3 {[%clk 0:01:38.2]} 22. bxc3 {[%clk
0:02:02.4]} 22... Rbc8 {[%clk 0:01:37.6]} 23. c4 {[%clk 0:02:01.6]} 23... Nc6
{[%clk 0:01:34.3]} 24. Nd5 {[%clk 0:01:59.3]} 24... Qf7 {[%clk 0:01:26.9]} 25.
Ne3 {[%clk 0:01:37.6]} 25... Nd4 {[%clk 0:01:26.2]} 26. Rad1 {[%clk 0:01:15.8]}
26... Rb8 {[%clk 0:01:24.4]} 27. f4 {[%clk 0:01:11.4]} 27... h5 {[%clk
0:01:05.1]} 28. Qg5 {[%clk 0:00:59.1]} 28... Rb2 {[%clk 0:01:03.2]} 29. f5
{[%clk 0:00:55.9]} 29... Qb7 {[%clk 0:00:37.4]} 30. f6 {[%clk 0:00:14.8]} 30...
Rf7 {[%clk 0:00:37.1]} 31. fxg7 {[%clk 0:00:11.9]} 31... Rxg7 {[%clk 0:00:37.3]}
32. Qd8+ {[%clk 0:00:09.1]} 32... Kh7 {[%clk 0:00:37.5]} 33. Rxd4 {[%clk
0:00:08.8]} 33... exd4 {[%clk 0:00:33]} 34. Nf5 {[%clk 0:00:07.7]} 34... exf5
{[%clk 0:00:32]} 35. Rxf5 {[%clk 0:00:08.6]} 35... Rxg3+ {[%clk 0:00:27.6]} 36.
Kf1 {[%clk 0:00:08.7]} 36... Rb1+ {[%clk 0:00:11.5]} 37. Kf2 {[%clk 0:00:08.9]}
37... Qb2+ {[%clk 0:00:09]} 38. Kxg3 {[%clk 0:00:07.2]} 38... Rg1+ {[%clk
0:00:09.5]} 39. Kh3 {[%clk 0:00:03.3]} 39... Qg2# {[%clk 0:00:08.6]} 0-1

[Event "*** Titled Tuesday Blitz"]
[Site "Chess.com"]
[Date "2021.02.02"]
[Round "7"]
[White "QuintilianoR"]
[Black "strelec64"]
[Result "1-0"]
[WhiteElo "2705"]
[BlackElo "2501"]
[TimeControl "180+1"]
[EndTime "11:19:40 PST"]
[Termination "QuintilianoR won on time"]

1. d4 {[%clk 0:03:00.9]} 1... Nf6 {[%clk 0:02:58.8]} 2. c4 {[%clk 0:03:00.1]}
2... e6 {[%clk 0:02:56.7]} 3. Nf3 {[%clk 0:03:00.2]} 3... b6 {[%clk 0:02:55.7]}
4. g3 {[%clk 0:03:00]} 4... Ba6 {[%clk 0:02:55.4]} 5. b3 {[%clk 0:03:00]} 5...
Bb4+ {[%clk 0:02:54]} 6. Bd2 {[%clk 0:03:00.4]} 6... Be7 {[%clk 0:02:53.5]} 7.
Nc3 {[%clk 0:03:01]} 7... d5 {[%clk 0:02:47.9]} 8. cxd5 {[%clk 0:03:01.9]} 8...
exd5 {[%clk 0:02:48]} 9. Bg2 {[%clk 0:03:02.3]} 9... O-O {[%clk 0:02:47.8]} 10.
O-O {[%clk 0:03:02.8]} 10... Bb7 {[%clk 0:02:47.8]} 11. Rc1 {[%clk 0:03:00]}
11... Na6 {[%clk 0:02:44.5]} 12. Ne5 {[%clk 0:02:55.2]} 12... Qc8 {[%clk
0:02:32.3]} 13. Bg5 {[%clk 0:02:52.8]} 13... Qe6 {[%clk 0:02:31.5]} 14. e3
{[%clk 0:02:51.7]} 14... h6 {[%clk 0:02:26.4]} 15. Bxf6 {[%clk 0:02:51.5]} 15...
Bxf6 {[%clk 0:02:26.5]} 16. Nd3 {[%clk 0:02:52.4]} 16... g5 {[%clk 0:02:12.1]}
17. b4 {[%clk 0:02:48.3]} 17... c6 {[%clk 0:02:10.2]} 18. a4 {[%clk 0:02:43]}
18... Nc7 {[%clk 0:02:08.3]} 19. b5 {[%clk 0:02:40.9]} 19... a6 {[%clk
0:01:56.7]} 20. bxc6 {[%clk 0:02:40.3]} 20... Bxc6 {[%clk 0:01:56.6]} 21. Qb3
{[%clk 0:02:40.7]} 21... Rab8 {[%clk 0:01:44.4]} 22. Nb4 {[%clk 0:02:38.5]}
22... Bb7 {[%clk 0:01:29.2]} 23. Ncxd5 {[%clk 0:02:35.6]} 23... Nxd5 {[%clk
0:01:24.5]} 24. Bxd5 {[%clk 0:02:36.5]} 24... Bxd5 {[%clk 0:01:22.4]} 25. Qxd5
{[%clk 0:02:36.5]} 25... a5 {[%clk 0:01:16.8]} 26. Qxe6 {[%clk 0:02:34.9]} 26...
fxe6 {[%clk 0:01:16.5]} 27. Nc6 {[%clk 0:02:33.6]} 27... Rb7 {[%clk 0:01:08.4]}
28. Rb1 {[%clk 0:02:19]} 28... Rff7 {[%clk 0:00:58.6]} 29. e4 {[%clk 0:01:39.7]}
29... Rfd7 {[%clk 0:00:53.9]} 30. Rfd1 {[%clk 0:01:38.5]} 30... Kf8 {[%clk
0:00:45.2]} 31. Kg2 {[%clk 0:01:36.4]} 31... Bg7 {[%clk 0:00:44.9]} 32. Rb5
{[%clk 0:01:31.6]} 32... Rdc7 {[%clk 0:00:42.5]} 33. d5 {[%clk 0:01:29.9]} 33...
exd5 {[%clk 0:00:40]} 34. exd5 {[%clk 0:01:30.8]} 34... Rd7 {[%clk 0:00:34.3]}
35. d6 {[%clk 0:01:23]} 35... Kf7 {[%clk 0:00:27.8]} 36. Ne5+ {[%clk 0:01:09.5]}
36... Bxe5 {[%clk 0:00:26.7]} 37. Rxe5 {[%clk 0:01:10.4]} 37... b5 {[%clk
0:00:19.5]} 38. axb5 {[%clk 0:01:06.7]} 38... Rb6 {[%clk 0:00:19.2]} 39. Red5
{[%clk 0:01:02.4]} 39... Ke6 {[%clk 0:00:19.2]} 40. R5d3 {[%clk 0:00:53.6]}
40... Rdxd6 {[%clk 0:00:18.7]} 41. Re1+ {[%clk 0:00:49.6]} 41... Kd7 {[%clk
0:00:17.5]} 42. Rde3 {[%clk 0:00:42.3]} 42... Rxb5 {[%clk 0:00:16.4]} 43. Re7+
{[%clk 0:00:42.3]} 43... Kc6 {[%clk 0:00:16.3]} 44. R1e6 {[%clk 0:00:38.1]}
44... Rd5 {[%clk 0:00:14.5]} 45. Re4 {[%clk 0:00:33.4]} 45... Kb5 {[%clk
0:00:11.1]} 46. Rb7+ {[%clk 0:00:32.7]} 46... Rb6 {[%clk 0:00:09.6]} 47. Ra7
{[%clk 0:00:33.1]} 47... Ra6 {[%clk 0:00:07.4]} 48. Rb7+ {[%clk 0:00:33.5]}
48... Rb6 {[%clk 0:00:06.7]} 49. Rf7 {[%clk 0:00:32.7]} 49... Rbd6 {[%clk
0:00:03.4]} 50. Rf3 {[%clk 0:00:30.3]} 50... Rd4 {[%clk 0:00:01.7]} 51. Rf5+
{[%clk 0:00:30.5]} 1-0

[Event "*** Titled Tuesday Blitz"]
[Site "Chess.com"]
[Date "2021.02.02"]
[Round "7"]
[White "SergeiAza"]
[Black "Berardino"]
[Result "1-0"]
[WhiteElo "2782"]
[BlackElo "2566"]
[TimeControl "180+1"]
[EndTime "11:19:42 PST"]
[Termination "SergeiAza won by resignation"]

1. e4 {[%clk 0:03:00.9]} 1... c5 {[%clk 0:02:59.8]} 2. Nf3 {[%clk 0:03:01.1]}
2... b6 {[%clk 0:03:00]} 3. d4 {[%clk 0:03:00.7]} 3... cxd4 {[%clk 0:03:00.9]}
4. Nxd4 {[%clk 0:03:00.9]} 4... Bb7 {[%clk 0:03:01.5]} 5. Nc3 {[%clk 0:03:01.1]}
5... Nf6 {[%clk 0:03:01.3]} 6. e5 {[%clk 0:02:56.3]} 6... Nd5 {[%clk 0:03:01.1]}
7. Qf3 {[%clk 0:02:27.1]} 7... Qc7 {[%clk 0:03:00.4]} 8. Bf4 {[%clk 0:01:43.7]}
8... Nxc3 {[%clk 0:02:53.1]} 9. Qxc3 {[%clk 0:01:43.7]} 9... Qxc3+ {[%clk
0:02:53.5]} 10. bxc3 {[%clk 0:01:44.3]} 10... Na6 {[%clk 0:02:27.7]} 11. a4
{[%clk 0:01:40.4]} 11... Nc5 {[%clk 0:02:21.2]} 12. a5 {[%clk 0:01:39.2]} 12...
e6 {[%clk 0:02:01.9]} 13. f3 {[%clk 0:01:33.7]} 13... Rc8 {[%clk 0:01:32.6]} 14.
axb6 {[%clk 0:01:30.1]} 14... axb6 {[%clk 0:01:33.5]} 15. Bb5 {[%clk 0:01:29.5]}
15... Be7 {[%clk 0:01:31.8]} 16. Ra7 {[%clk 0:01:28.9]} 16... Ra8 {[%clk
0:01:00.5]} 17. Rxa8+ {[%clk 0:01:24.7]} 17... Bxa8 {[%clk 0:01:01.4]} 18. Kd2
{[%clk 0:01:24.2]} 18... Kd8 {[%clk 0:00:49]} 19. Ra1 {[%clk 0:01:19.9]} 19...
Kc7 {[%clk 0:00:48.6]} 20. Be2 {[%clk 0:01:07.8]} 20... Bc6 {[%clk 0:00:39.1]}
21. Ra7+ {[%clk 0:01:04.5]} 21... Nb7 {[%clk 0:00:37.3]} 22. Ba6 {[%clk
0:00:57.5]} 22... Rb8 {[%clk 0:00:32]} 23. Be3 {[%clk 0:00:48.9]} 23... Bc5
{[%clk 0:00:27]} 24. Bd3 {[%clk 0:00:42]} 24... b5 {[%clk 0:00:13.4]} 25. Nxb5+
{[%clk 0:00:33.5]} 25... Kb6 {[%clk 0:00:08.8]} 26. Ra1 {[%clk 0:00:22.1]} 26...
Bxe3+ {[%clk 0:00:07.9]} 27. Kxe3 {[%clk 0:00:22.4]} 27... Bxb5 {[%clk
0:00:07.8]} 28. Rb1 {[%clk 0:00:23]} 28... Kc7 {[%clk 0:00:05.4]} 29. Rxb5
{[%clk 0:00:21.9]} 29... Nd8 {[%clk 0:00:05.8]} 30. Ra5 {[%clk 0:00:20.3]} 30...
Nc6 {[%clk 0:00:05.4]} 31. Rc5 {[%clk 0:00:20]} 31... Kb6 {[%clk 0:00:05.3]} 32.
Rb5+ {[%clk 0:00:19.1]} 32... Kc7 {[%clk 0:00:05.9]} 33. f4 {[%clk 0:00:17.8]}
33... Rxb5 {[%clk 0:00:05]} 34. Bxb5 {[%clk 0:00:18.4]} 34... Na5 {[%clk
0:00:05]} 35. Kd4 {[%clk 0:00:17]} 35... d6 {[%clk 0:00:01.4]} 36. Be8 {[%clk
0:00:14]} 36... f6 {[%clk 0:00:01.4]} 37. exf6 {[%clk 0:00:11.8]} 37... gxf6
{[%clk 0:00:02.3]} 38. g4 {[%clk 0:00:12.1]} 38... Nb7 {[%clk 0:00:02.6]} 39. g5
{[%clk 0:00:11]} 39... fxg5 {[%clk 0:00:02.9]} 40. fxg5 {[%clk 0:00:11.9]} 40...
Nc5 {[%clk 0:00:03.2]} 41. h4 {[%clk 0:00:11.7]} 41... Kd8 {[%clk 0:00:03.7]}
42. Bc6 {[%clk 0:00:11.8]} 42... Ke7 {[%clk 0:00:03.9]} 43. Be4 {[%clk
0:00:11.9]} 43... h6 {[%clk 0:00:03.4]} 44. gxh6 {[%clk 0:00:11.7]} 44... e5+
{[%clk 0:00:04.1]} 45. Kd5 {[%clk 0:00:11.4]} 45... Ne6 {[%clk 0:00:05]} 46. h7
{[%clk 0:00:10.1]} 1-0

[Event "*** Titled Tuesday Blitz"]
[Site "Chess.com"]
[Date "2021.02.02"]
[Round "7"]
[White "CakeinSpace2002"]
[Black "TimKett"]
[Result "1-0"]
[WhiteElo "2368"]
[BlackElo "2184"]
[TimeControl "180+1"]
[EndTime "11:19:42 PST"]
[Termination "CakeinSpace2002 won on time"]

1. Nf3 {[%clk 0:02:58.8]} 1... d5 {[%clk 0:02:55.1]} 2. b3 {[%clk 0:02:59.7]}
2... Bg4 {[%clk 0:02:54]} 3. Bb2 {[%clk 0:03:00.6]} 3... Bxf3 {[%clk 0:02:53.5]}
4. gxf3 {[%clk 0:03:00.7]} 4... Nd7 {[%clk 0:02:51.7]} 5. e3 {[%clk 0:02:59.8]}
5... e5 {[%clk 0:02:50.9]} 6. Bh3 {[%clk 0:02:58.8]} 6... Ngf6 {[%clk
0:02:49.9]} 7. c4 {[%clk 0:02:56.5]} 7... Bd6 {[%clk 0:02:21.5]} 8. Nc3 {[%clk
0:02:54.4]} 8... d4 {[%clk 0:02:21.1]} 9. Ne4 {[%clk 0:02:53.3]} 9... Nxe4
{[%clk 0:02:14.4]} 10. fxe4 {[%clk 0:02:54.2]} 10... Nc5 {[%clk 0:02:07.6]} 11.
d3 {[%clk 0:02:40.6]} 11... dxe3 {[%clk 0:02:07.4]} 12. O-O {[%clk 0:02:40]}
12... Qg5+ {[%clk 0:01:41.9]} 13. Kh1 {[%clk 0:02:37.8]} 13... O-O {[%clk
0:01:40.4]} 14. Qe2 {[%clk 0:02:24.3]} 14... exf2 {[%clk 0:01:23.5]} 15. Rxf2
{[%clk 0:02:25.2]} 15... Qh4 {[%clk 0:01:22.2]} 16. Rf3 {[%clk 0:02:15.4]} 16...
Ne6 {[%clk 0:01:16.8]} 17. Bxe6 {[%clk 0:01:58.3]} 17... fxe6 {[%clk 0:01:16.8]}
18. Rg3 {[%clk 0:01:59.2]} 18... Rf6 {[%clk 0:01:13]} 19. Rag1 {[%clk
0:01:59.2]} 19... g6 {[%clk 0:01:05.1]} 20. d4 {[%clk 0:01:45.4]} 20... Raf8
{[%clk 0:01:04]} 21. R3g2 {[%clk 0:01:35.6]} 21... Rf2 {[%clk 0:00:48]} 22. Qe1
{[%clk 0:01:21.7]} 22... exd4 {[%clk 0:00:44.5]} 23. e5 {[%clk 0:01:20.3]} 23...
Bc5 {[%clk 0:00:32.3]} 24. b4 {[%clk 0:01:20]} 24... Bxb4 {[%clk 0:00:29.8]} 25.
Qd1 {[%clk 0:00:45.4]} 25... Bc3 {[%clk 0:00:24.8]} 26. Ba3 {[%clk 0:00:42.9]}
26... R8f4 {[%clk 0:00:21.9]} 27. Bc1 {[%clk 0:00:39.9]} 27... Re4 {[%clk
0:00:16.8]} 28. Bg5 {[%clk 0:00:36.5]} 28... Rxg2 {[%clk 0:00:08.6]} 29. Bxh4
{[%clk 0:00:33.3]} 29... Rxg1+ {[%clk 0:00:08.9]} 30. Kxg1 {[%clk 0:00:34.2]}
30... Rxh4 {[%clk 0:00:08.8]} 31. Qf3 {[%clk 0:00:33.4]} 31... g5 {[%clk
0:00:04.7]} 32. Qf6 {[%clk 0:00:33.2]} 32... h6 {[%clk 0:00:02.9]} 33. Qxe6+
{[%clk 0:00:31.9]} 33... Kg7 {[%clk 0:00:03.5]} 34. Qe7+ {[%clk 0:00:32.1]}
34... Kg6 {[%clk 0:00:03.1]} 35. Qf6+ {[%clk 0:00:31.8]} 35... Kh5 {[%clk
0:00:03]} 36. e6 {[%clk 0:00:30.8]} 36... Rg4+ {[%clk 0:00:02]} 37. Kh1 {[%clk
0:00:29.9]} 37... Rf4 {[%clk 0:00:02.5]} 38. Qxf4 {[%clk 0:00:26.5]} 38... gxf4
{[%clk 0:00:02.5]} 39. e7 {[%clk 0:00:27.4]} 39... d3 {[%clk 0:00:03.2]} 40.
e8=Q+ {[%clk 0:00:28.3]} 40... Kg4 {[%clk 0:00:03.5]} 41. Qd7+ {[%clk
0:00:28.1]} 41... Kf3 {[%clk 0:00:02.9]} 42. Qxd3+ {[%clk 0:00:29]} 42... Kf2
{[%clk 0:00:03.6]} 43. Qxc3 {[%clk 0:00:29.6]} 43... f3 {[%clk 0:00:04.3]} 44.
h4 {[%clk 0:00:29.6]} 44... Ke2 {[%clk 0:00:03.1]} 45. Qc2+ {[%clk 0:00:29.1]}
45... Ke1 {[%clk 0:00:02.9]} 46. Qe4+ {[%clk 0:00:26.1]} 46... Kf2 {[%clk
0:00:02.3]} 47. Kh2 {[%clk 0:00:26]} 1-0

[Event "*** Titled Tuesday Blitz"]
[Site "Chess.com"]
[Date "2021.02.02"]
[Round "7"]
[White "sorrm8thatscheckm8"]
[Black "Fischerev7"]
[Result "0-1"]
[WhiteElo "2555"]
[BlackElo "2397"]
[TimeControl "180+1"]
[EndTime "11:19:44 PST"]
[Termination "Fischerev7 won by checkmate"]

1. d4 {[%clk 0:02:41.7]} 1... Nf6 {[%clk 0:02:59.5]} 2. c4 {[%clk 0:02:41.9]}
2... e6 {[%clk 0:02:59.7]} 3. Nf3 {[%clk 0:02:41.7]} 3... Bb4+ {[%clk
0:02:59.9]} 4. Bd2 {[%clk 0:02:41.2]} 4... a5 {[%clk 0:03:00.2]} 5. g3 {[%clk
0:02:41.3]} 5... O-O {[%clk 0:02:59.7]} 6. Bg2 {[%clk 0:02:42]} 6... d5 {[%clk
0:02:59.9]} 7. Qc2 {[%clk 0:02:39.5]} 7... c5 {[%clk 0:02:58.5]} 8. dxc5 {[%clk
0:02:38.3]} 8... d4 {[%clk 0:02:58.2]} 9. Bxb4 {[%clk 0:02:36.2]} 9... axb4
{[%clk 0:02:59.1]} 10. O-O {[%clk 0:02:36.2]} 10... Nc6 {[%clk 0:02:57.2]} 11.
Nbd2 {[%clk 0:02:35.5]} 11... e5 {[%clk 0:02:56]} 12. Ng5 {[%clk 0:02:35.7]}
12... Qe7 {[%clk 0:02:49.3]} 13. Nge4 {[%clk 0:02:35.5]} 13... Nxe4 {[%clk
0:02:48.4]} 14. Nxe4 {[%clk 0:02:33.7]} 14... Bf5 {[%clk 0:02:45.7]} 15. Qd2
{[%clk 0:02:31.8]} 15... Bxe4 {[%clk 0:02:35.6]} 16. Bxe4 {[%clk 0:02:30.3]}
16... Qxc5 {[%clk 0:02:29.3]} 17. b3 {[%clk 0:02:30]} 17... f5 {[%clk
0:02:15.4]} 18. Bd5+ {[%clk 0:02:28.8]} 18... Kh8 {[%clk 0:02:15.2]} 19. Rfd1
{[%clk 0:01:58.9]} 19... Rad8 {[%clk 0:02:10.7]} 20. e3 {[%clk 0:01:56.6]} 20...
Rxd5 {[%clk 0:01:34]} 21. cxd5 {[%clk 0:01:54.4]} 21... Qxd5 {[%clk 0:01:34.9]}
22. Qc2 {[%clk 0:01:39.6]} 22... Qf3 {[%clk 0:01:19.1]} 23. Qc5 {[%clk
0:01:34.7]} 23... Rd8 {[%clk 0:01:01.2]} 24. exd4 {[%clk 0:01:30.6]} 24... exd4
{[%clk 0:00:40.2]} 25. Rac1 {[%clk 0:01:27.5]} 25... d3 {[%clk 0:00:37.3]} 26.
Rd2 {[%clk 0:01:18.8]} 26... h6 {[%clk 0:00:34.4]} 27. Re1 {[%clk 0:01:15.6]}
27... Rd5 {[%clk 0:00:32.5]} 28. Qf8+ {[%clk 0:01:12.6]} 28... Kh7 {[%clk
0:00:32.6]} 29. Re8 {[%clk 0:01:08.2]} 29... Nd4 {[%clk 0:00:27.5]} 30. Qg8+
{[%clk 0:01:07.4]} 30... Kg6 {[%clk 0:00:26.2]} 31. Re7 {[%clk 0:00:54.1]} 31...
Ne2+ {[%clk 0:00:05.8]} 32. Rdxe2 {[%clk 0:00:52.9]} 32... dxe2 {[%clk
0:00:05.3]} 33. Qxg7+ {[%clk 0:00:38]} 33... Kh5 {[%clk 0:00:04.9]} 34. Qf7+
{[%clk 0:00:38.1]} 34... Kg5 {[%clk 0:00:05.3]} 35. Qg8+ {[%clk 0:00:28.6]}
35... Kh5 {[%clk 0:00:05.2]} 36. Qe8+ {[%clk 0:00:20.1]} 36... Kg4 {[%clk
0:00:05.5]} 37. Rg7+ {[%clk 0:00:19.9]} 37... Kh3 {[%clk 0:00:02.6]} 38. Qh5+
{[%clk 0:00:04.6]} 38... Qxh5 {[%clk 0:00:02.2]} 39. Rd7 {[%clk 0:00:03.6]}
39... Qf3 {[%clk 0:00:03.1]} 40. Rxd5 {[%clk 0:00:03.3]} 40... e1=Q# {[%clk
0:00:03.7]} 0-1

[Event "*** Titled Tuesday Blitz"]
[Site "Chess.com"]
[Date "2021.02.02"]
[Round "7"]
[White "2nd_life"]
[Black "GMKrikor"]
[Result "0-1"]
[WhiteElo "2452"]
[BlackElo "2788"]
[TimeControl "180+1"]
[EndTime "11:19:44 PST"]
[Termination "GMKrikor won on time"]

1. e4 {[%clk 0:03:00.9]} 1... c5 {[%clk 0:03:00.1]} 2. Nf3 {[%clk 0:03:00.4]}
2... d6 {[%clk 0:03:00.4]} 3. d4 {[%clk 0:03:00]} 3... cxd4 {[%clk 0:03:01.3]}
4. Nxd4 {[%clk 0:02:58.6]} 4... Nf6 {[%clk 0:03:01.1]} 5. Nc3 {[%clk 0:02:58.4]}
5... a6 {[%clk 0:03:01.7]} 6. Be3 {[%clk 0:02:58.2]} 6... e5 {[%clk 0:02:59.8]}
7. Nb3 {[%clk 0:02:58]} 7... Be6 {[%clk 0:02:59.7]} 8. Qd2 {[%clk 0:02:55.9]}
8... Nbd7 {[%clk 0:02:58.4]} 9. f3 {[%clk 0:02:39.9]} 9... h5 {[%clk 0:02:57.4]}
10. Be2 {[%clk 0:02:38.9]} 10... Be7 {[%clk 0:02:51.2]} 11. O-O {[%clk
0:02:36.8]} 11... O-O {[%clk 0:02:48.1]} 12. Rfd1 {[%clk 0:02:30.7]} 12... b5
{[%clk 0:02:42.2]} 13. a4 {[%clk 0:02:19.5]} 13... b4 {[%clk 0:02:37.1]} 14. Nd5
{[%clk 0:01:56.4]} 14... Bxd5 {[%clk 0:02:37]} 15. exd5 {[%clk 0:01:57.3]} 15...
Nb6 {[%clk 0:02:37.3]} 16. Na5 {[%clk 0:01:50.2]} 16... Nbxd5 {[%clk 0:02:24.6]}
17. Nc6 {[%clk 0:01:49.3]} 17... Qc7 {[%clk 0:02:22.8]} 18. Nxe7+ {[%clk
0:01:45.3]} 18... Qxe7 {[%clk 0:02:17.7]} 19. Bg5 {[%clk 0:01:45.2]} 19... Qa7+
{[%clk 0:02:17.6]} 20. Kh1 {[%clk 0:01:43.9]} 20... Rac8 {[%clk 0:01:51.5]} 21.
Bd3 {[%clk 0:01:42.7]} 21... a5 {[%clk 0:01:48.5]} 22. Rf1 {[%clk 0:01:12.4]}
22... Qc5 {[%clk 0:01:37.8]} 23. Rae1 {[%clk 0:01:09.5]} 23... Rfe8 {[%clk
0:01:25.8]} 24. Re2 {[%clk 0:00:37.6]} 24... Nh7 {[%clk 0:01:20.3]} 25. Bxh7+
{[%clk 0:00:30.7]} 25... Kxh7 {[%clk 0:01:21.2]} 26. Rd1 {[%clk 0:00:30.4]}
26... Ne7 {[%clk 0:00:59.5]} 27. Bxe7 {[%clk 0:00:22]} 27... Rxe7 {[%clk
0:01:00.4]} 28. Qxd6 {[%clk 0:00:21.3]} 28... f6 {[%clk 0:00:26.5]} 29. Qd3+
{[%clk 0:00:18.7]} 29... Kg8 {[%clk 0:00:23.7]} 30. g3 {[%clk 0:00:17.7]} 30...
Qc4 {[%clk 0:00:23.9]} 31. Kg2 {[%clk 0:00:16.7]} 31... Rec7 {[%clk 0:00:18.3]}
32. Qe3 {[%clk 0:00:09.6]} 32... Qc5 {[%clk 0:00:15.8]} 33. Qe4 {[%clk
0:00:06.4]} 33... Qc6 {[%clk 0:00:15.9]} 34. Qg6 {[%clk 0:00:05]} 34... Qe6
{[%clk 0:00:13.3]} 35. Red2 {[%clk 0:00:03.3]} 35... Qe8 {[%clk 0:00:09.1]} 36.
Qe4 {[%clk 0:00:02.4]} 36... Re7 {[%clk 0:00:05.5]} 37. Qf5 {[%clk 0:00:02.2]}
37... Rb8 {[%clk 0:00:05.2]} 38. Qe4 {[%clk 0:00:01.9]} 38... Kh8 {[%clk
0:00:05]} 39. Rd6 {[%clk 0:00:01.9]} 39... Rc8 {[%clk 0:00:04.8]} 40. R1d2
{[%clk 0:00:02.4]} 40... Qf7 {[%clk 0:00:04.2]} 41. Qd3 {[%clk 0:00:02.4]} 41...
g6 {[%clk 0:00:04.3]} 42. Qa6 {[%clk 0:00:02.1]} 42... Rf8 {[%clk 0:00:03.1]}
0-1

[Event "*** Titled Tuesday Blitz"]
[Site "Chess.com"]
[Date "2021.02.02"]
[Round "7"]
[White "HanSchut"]
[Black "GM_LOADING"]
[Result "0-1"]
[WhiteElo "2272"]
[BlackElo "2467"]
[TimeControl "180+1"]
[EndTime "11:19:44 PST"]
[Termination "GM_LOADING won by resignation"]

1. e4 {[%clk 0:03:00.9]} 1... e5 {[%clk 0:02:58.4]} 2. Nf3 {[%clk 0:03:01.2]}
2... Nc6 {[%clk 0:02:56.5]} 3. Bc4 {[%clk 0:03:01.7]} 3... Nf6 {[%clk
0:02:55.5]} 4. d4 {[%clk 0:03:01.6]} 4... exd4 {[%clk 0:02:54.6]} 5. e5 {[%clk
0:03:02.5]} 5... d5 {[%clk 0:02:54.3]} 6. Bb5 {[%clk 0:03:03.1]} 6... Nd7 {[%clk
0:02:54.5]} 7. O-O {[%clk 0:03:02]} 7... Be7 {[%clk 0:02:47.5]} 8. Re1 {[%clk
0:02:58.8]} 8... O-O {[%clk 0:02:45]} 9. Bxc6 {[%clk 0:02:59.2]} 9... bxc6
{[%clk 0:02:44.9]} 10. Nxd4 {[%clk 0:02:59.9]} 10... Nb8 {[%clk 0:02:44.1]} 11.
Nc3 {[%clk 0:02:58.9]} 11... c5 {[%clk 0:02:41.2]} 12. Nb3 {[%clk 0:02:36.5]}
12... Be6 {[%clk 0:02:39.6]} 13. f4 {[%clk 0:02:17.5]} 13... Nc6 {[%clk
0:02:29.2]} 14. Qf3 {[%clk 0:02:10.8]} 14... Qd7 {[%clk 0:02:23.5]} 15. Rd1
{[%clk 0:02:05.4]} 15... Rfd8 {[%clk 0:02:11.4]} 16. h3 {[%clk 0:02:01.6]} 16...
Nb4 {[%clk 0:02:03.9]} 17. Qf2 {[%clk 0:01:56]} 17... d4 {[%clk 0:01:12.9]} 18.
a3 {[%clk 0:01:21.6]} 18... Nc6 {[%clk 0:00:49]} 19. Ne4 {[%clk 0:01:08.7]}
19... Qd5 {[%clk 0:00:48.8]} 20. Ng3 {[%clk 0:01:02.3]} 20... Bh4 {[%clk
0:00:38.1]} 21. Nd2 {[%clk 0:00:51.7]} 21... Bf5 {[%clk 0:00:31.8]} 22. Nf3
{[%clk 0:00:51.3]} 22... Bxg3 {[%clk 0:00:28.3]} 23. Qxg3 {[%clk 0:00:52.2]}
23... Bxc2 {[%clk 0:00:28.8]} 24. Re1 {[%clk 0:00:49.3]} 24... Be4 {[%clk
0:00:20.2]} 25. Ng5 {[%clk 0:00:44.1]} 25... Bf5 {[%clk 0:00:20.1]} 26. Bd2
{[%clk 0:00:35.9]} 26... Rab8 {[%clk 0:00:16]} 27. Nf3 {[%clk 0:00:23.9]} 27...
Rxb2 {[%clk 0:00:15]} 28. Nh4 {[%clk 0:00:24.4]} 28... Be4 {[%clk 0:00:13.5]}
29. f5 {[%clk 0:00:22.5]} 29... Rxd2 {[%clk 0:00:12.9]} 30. f6 {[%clk
0:00:22.9]} 30... Bg6 {[%clk 0:00:07.9]} 31. fxg7 {[%clk 0:00:20.5]} 31... Qe6
{[%clk 0:00:06.1]} 32. Qf4 {[%clk 0:00:15.3]} 32... Rb2 {[%clk 0:00:05.6]} 33.
Rac1 {[%clk 0:00:13.9]} 33... d3 {[%clk 0:00:05.9]} 34. Rxc5 {[%clk 0:00:12.8]}
34... d2 {[%clk 0:00:06.5]} 35. Rd1 {[%clk 0:00:13.2]} 35... Bc2 {[%clk
0:00:06.4]} 36. Rxd2 {[%clk 0:00:12.8]} 36... Rb1+ {[%clk 0:00:05.3]} 37. Kh2
{[%clk 0:00:12.7]} 37... Rxd2 {[%clk 0:00:05.5]} 38. Qxd2 {[%clk 0:00:13.5]}
38... Bg6 {[%clk 0:00:05.7]} 39. Rxc6 {[%clk 0:00:12]} 39... Qxc6 {[%clk
0:00:05.3]} 40. Qd8+ {[%clk 0:00:12.9]} 40... Kxg7 {[%clk 0:00:05.8]} 41. Qg5
{[%clk 0:00:12.2]} 41... Qe6 {[%clk 0:00:05.8]} 42. Nf3 {[%clk 0:00:10.6]} 42...
Rb5 {[%clk 0:00:06]} 43. h4 {[%clk 0:00:09.9]} 43... Rb3 {[%clk 0:00:06.4]} 44.
h5 {[%clk 0:00:09.8]} 44... Rxf3 {[%clk 0:00:06.7]} 45. gxf3 {[%clk 0:00:10.7]}
45... Qf5 {[%clk 0:00:07.2]} 46. Qg4 {[%clk 0:00:08.8]} 46... Qxg4 {[%clk
0:00:07]} 47. fxg4 {[%clk 0:00:09.7]} 47... Bxh5 {[%clk 0:00:07.5]} 48. gxh5
{[%clk 0:00:09.8]} 48... Kh6 {[%clk 0:00:08.1]} 49. e6 {[%clk 0:00:09.9]} 49...
fxe6 {[%clk 0:00:08.2]} 0-1